Cogmind - Beta 15 *** ADVENTURER MODE // 2025.07.29 @ 21:42:22 Player: KYUANTUM Result: Self-destructed Performance ------------- Evolutions (1) 500 Regions Visited (2) 400 Robots Destroyed (13) 65 Value Destroyed (300) 300 Prototype IDs (0) 0 Alien Tech Used (0) 0 Bonus (0) 0 TOTAL SCORE: 1265 Bonus ------- None Cogmind --------- Core Integrity 333/400 Matter 300/300 Energy 249/250 System Corruption 0% Temperature Cool (2) Movement Hovering (56) Location -9/Materials Parts ------- > --- POWER (1) -------- Ion Engine > --- PROPULSION (4) --- Hover Unit Hover Unit > --- UTILITY (2) ------ Cooling System Sensor Array > --- WEAPON (2) ------- Light Assault Rifle Heavy Assault Rifle > --- INVENTORY (5) ---- Ion Engine Hover Unit Flight Unit Assault Rifle Peak State ------------ > --- POWER ------------ Ion Engine > --- PROPULSION ------- Hover Unit Hover Unit Hover Unit Hover Unit > --- UTILITY ---------- Cooling System Sensor Array > --- WEAPON ----------- Light Assault Rifle Heavy Assault Rifle > --- INVENTORY -------- Ion Engine Hover Unit Assault Rifle [Rating: 11] Favorites ----------- Power Ion Engine Engine Ion Engine Propulsion Hover Unit Wheel Wheel Hover Unit Hover Unit Utility Sensor Array Device Sensor Array Storage Small Storage Unit Weapon Light Assault Rifle Energy Gun EM Pulse Gun Ballistic Gun Light Assault Rifle Build | -11 -10 -9 ------- Run | Yrd Mat Mat Slots Evolved 2 | . . 2 Power . | . . . Propulsion 2 | . . 2 Utility . | . . . Weapon . | . . . Parts Attached 17 | 5 6 6 Power 1 | 1 . . Engine 1 | 1 . . Core . | . . . Reactor . | . . . Propulsion 8 | 2 3 3 Treads . | . . . Leg . | . . . Wheel 2 | 2 . . Hover 6 | . 3 3 Flight . | . . . Utility 4 | . 3 1 Device 3 | . 2 1 Storage 1 | . 1 . Processor . | . . . Hackware . | . . . Protection . | . . . Artifact . | . . . Weapon 4 | 2 . 2 Energy Gun 1 | . . 1 Energy Cannon . | . . . Ballistic Gun 3 | 2 . 1 Ballistic Cannon . | . . . Launcher . | . . . Special Weapon . | . . . Impact Weapon . | . . . Slashing Weapon . | . . . Piercing Weapon . | . . . Special Melee Weapon . | . . . Unidentified Prototypes . | . . . Parts Lost 4 | . . 4 Power . | . . . Propulsion 3 | . . 3 Utility . | . . . Weapon 1 | . . 1 Highest Loss Streak 2 | . . 2 To Critical Strikes . | . . . Average Backups 3 | 2 5 3 Power . | . 1 1 Propulsion 1 | 1 3 1 Utility . | . . . Weapon 1 | . 1 1 Tool/Special . | . . . Unused Backups 5 | . 2 3 Power 1 | . . 1 Propulsion 4 | . 2 2 Utility . | . . . Weapon . | . . . Tool/Special . | . . . Average Slot Usage (%) 86 | . 83 87 Engine 12 | . 14 11 Wheel 2 | . 6 . Hover 33 | . 21 41 Device 13 | . 10 15 Ballistic Gun 23 | . 28 20 Peak Build Rating 11 | 5 7 11 Average Rating 7 | 3 5 8 On Entrance 3 | . 5 6 Naked Turns . | . . . Heaviest Build 13 | 8 13 12 Greatest Support 26 | 26 26 24 Greatest Overweight (x) . | . . . Average Overweight (x) . | . . . Largest Inventory Capacity 8 | 5 8 5 Average Capacity 5 | 5 5 5 Most Carried 7 | 5 7 5 Average Carried 4 | 3 5 3 Final Capacity 5 | 5 5 5 Final Carried 5 | 5 5 4 Class Distribution -------------------- 100% | Mutant Dominant Class ---------------- Mutant | -10/Materials Mutant | -9/Materials Resources | -11 -10 -9 ----------- Run | Yrd Mat Mat Matter Collected 520 | 234 27 259 Remotely . | . . . Salvage Created 416 | . 27 389 Parts 23 | . 2 21 Haulers Intercepted . | . . . Recyclers Shooed 1 | . . 1 Parts Field Recycled . | . . . Retrieved Matter . | . . . Parts Self-Destructed . | . . . Prevented . | . . . Kills | -11 -10 -9 ------- Run | Yrd Mat Mat Combat Hostiles Destroyed 8 | . . 8 Guns 8 | . . 8 Classes Destroyed 6 | . 1 5 Worker 1 | . . 1 Tunneler 1 | . . 1 Watcher 3 | . 1 2 Swarmer 3 | . . 3 Grunt 1 | . . 1 Sentry 4 | . . 4 Best Kill Streak 3 | . 1 3 Combat Bots Only 3 | . . 3 Max Kills in Single Turn 1 | . 1 1 Gunslinging . | . . . Exploded . | . . . Melee . | . . . Uniques/NPCs Destroyed . | . . . Combat | -11 -10 -9 -------- Run | Yrd Mat Mat Hostile Shots Fired 52 | . 6 46 Missed 19 | . 3 16 Hits 33 | . 3 30 Projectile 33 | . 3 30 Critical Strikes 2 | . . 2 Damage Taken 346 | . 26 320 Core 67 | . . 67 Absorbed by Shields . | . . . Ignored by Resistances 98 | . 7 91 Core Remaining (%) 100 | 100 100 . Volleys Fired 59 | . 2 57 Largest 2 | . 2 2 Hottest 60 | . 40 60 Shots Fired 92 | . 4 88 Gun 92 | . 4 88 Cannon . | . . . Launcher . | . . . Special . | . . . Kinetic 81 | . 4 77 Thermal . | . . . Explosive . | . . . Electromagnetic 11 | . . 11 Robot Hit Streak 21 | . 3 21 Robot Miss Streak 3 | . . 3 Penetration Max . | . . . Secondary Targets . | . . . Shots Hit Robots 73 | . 3 70 Core Hits 24 | . 2 22 Critical Kills . | . . . Critical Parts Destroyed 1 | . . 1 Critical Strikes 1 | . . 1 Destroy 1 | . . 1 Melee Attacks . | . . . Impact . | . . . Slashing . | . . . Piercing . | . . . Sneak Attacks . | . . . Combat Hostiles . | . . . Follow-up Attacks . | . . . Damage Inflicted 783 | . 30 753 Guns 774 | . 30 744 Cannons . | . . . Explosions . | . . . Melee . | . . . Ramming 9 | . . 9 Kinetic 666 | . 30 636 Thermal . | . . . Explosive . | . . . Electromagnetic 108 | . . 108 Impact . | . . . Slashing . | . . . Piercing . | . . . Highest Corruption 1 | . 1 . Average Corruption 1 | . 1 . Corruption Purged . | . . . Corruption Blocked . | . . . Overload Shots . | . . . Overflow Damage . | . . . Projectiles . | . . . Explosions . | . . . Melee . | . . . Knockbacks . | . . . Impact . | . . . Kinetic . | . . . Secondary . | . . . Self-Inflicted Damage 4 | . . 4 Shots . | . . . Rammed 2 | . . 2 Targets Rammed 2 | . . 2 Kicked . | . . . Crushed . | . . . Highest Temperature 52 | . . 52 Average Temperature 13 | . . 13 Received Heat Transfer 192 | . 21 171 Siege Activations . | . . . Martial Activations . | . . . Shielding Activations . | . . . Robots Disrupted . | . . . Combat Hostiles . | . . . Robots Corrupted . | . . . Combat Hostiles . | . . . Parts Fried . | . . . Impact Corruptions . | . . . Robots Melted . | . . . Combat Hostiles . | . . . Parts Melted . | . . . Heat Transferred . | . . . Parts Sabotaged . | . . . Parts Stolen . | . . . Parts Stripped . | . . . Power Chain Reactions . | . . . Alert | -11 -10 -9 ------- Run | Yrd Mat Mat Maximum Alert Level . | . . . Low Security (%) 100 | 100 100 100 Level 1 . | . . . Level 2 . | . . . Level 3 . | . . . Level 4 . | . . . Level 5 . | . . . High Security . | . . . Max Security . | . . . Peak Influence 155 | . 7 155 Initial . | . . . Average 32 | . . 58 Influence Increases 430 | . 11 419 Destroy 0b10 Robot/C 160 | . . 160 Destroy 0b10 Robot/NC 25 | . 5 20 Destroy Leader 56 | . 2 54 Successful Hack 8 | . 4 4 Destroy Structure 1 | . . 1 Partial Spotted 90 | . . 90 Lose Combat Pursuer 90 | . . 90 Influence Decreases 285 | . 11 274 Time Decay 245 | . 11 234 Lost Part 40 | . . 40 Squads Dispatched . | . . . Investigation . | . . . Extermination . | . . . Reinforcement . | . . . Assault . | . . . Garrison . | . . . Intercept . | . . . Searches Triggered . | . . . Construction Impeded . | . . . Haulers Reinforced . | . . . Active Scanning Responses . | . . . Cargo Convoy Interrupts . | . . . Stealth | -11 -10 -9 --------- Run | Yrd Mat Mat Distress Signals 3 | . . 3 Communications Jammed . | . . . Distress Signals . | . . . Times Spotted 19 | . 6 13 Peak Tracking Total 5 | . 4 5 Tactical Retreats 5 | . . 5 Traps | -11 -10 -9 ------- Run | Yrd Mat Mat Traps Triggered 1 | . 1 . Indirectly . | . . . Trap Hack Attempts . | . . . Triggered . | . . . Disarmed . | . . . Reprogrammed . | . . . Reused . | . . . Traps Extracted . | . . . Installed . | . . . Triggered . | . . . Machines | -11 -10 -9 ---------- Run | Yrd Mat Mat Machines Disabled . | . . . Max in Single Turn . | . . . Machines Repaired . | . . . Machines Dismantled . | . . . Machines Sabotaged . | . . . Overloaded Fab Kills . | . . . Hacking | -11 -10 -9 --------- Run | Yrd Mat Mat Machines Accessed 7 | . 4 3 Terminals 7 | . 4 3 Fabricators . | . . . Repair Stations . | . . . Recycling Units . | . . . Scanalyzers . | . . . Garrison Access . | . . . Total Hacks 9 | . 4 5 Successful 8 | . 4 4 Failed 1 | . . 1 Catastrophic . | . . . Database Lockouts . | . . . Manual 8 | . 4 4 Terminals 9 | . 4 5 Fabricators . | . . . Repair Stations . | . . . Recycling Units . | . . . Scanalyzers . | . . . Garrison Access . | . . . Terminal Hacks 1 | . . 1 Zone Layout 1 | . . 1 Fabricator Hacks . | . . . Repair Station Hacks . | . . . Recycling Unit Hacks . | . . . Scanalyzer . | . . . Garrison Access Hacks . | . . . Unauthorized Hacks 7 | . 4 3 Terminals 7 | . 4 3 Botnet 7 | . 4 3 Fabricators . | . . . Repair Stations . | . . . Recycling Units . | . . . Scanalyzers . | . . . Garrison Access . | . . . Data Cores Recovered . | . . . Used . | . . . Hacking Detections 3 | . 3 . Full Trace Events . | . . . Feedback Events . | . . . Feedback Blocked . | . . . Robot Schematics Acquired . | . . . Robots Built . | . . . Authchips . | . . . Time . | . . . Total Robot Build Rating . | . . . Part Schematics Acquired . | . . . Parts Built . | . . . Authchips . | . . . Time . | . . . Total Part Build Rating . | . . . Parts Repaired . | . . . Time . | . . . Parts Recycled . | . . . Recycled Matter . | . . . Retrieved Matter . | . . . Retrieved Components . | . . . Parts Scanalyzed . | . . . Part Schematics Acquired . | . . . Parts Damaged . | . . . Bothacking | -11 -10 -9 ------------ Run | Yrd Mat Mat Used RIF Installer . | . . . Robots Hacked . | . . . Non-combat . | . . . Combat . | . . . Robot Hacks Applied . | . . . Relay Couplers Released . | . . . Fabnet Peak Effective % . | . . . Robots Rewired . | . . . Allies Hacked . | . . . Hacks Repelled . | . . . Allies | -11 -10 -9 -------- Run | Yrd Mat Mat Total Allies . | . . . Largest Group . | . . . Highest-Rated Group . | . . . Highest-Rated Ally . | . . . Total Orders . | . . . Ally Attacks . | . . . Total Damage . | . . . Kills . | . . . Allies Corrupted . | . . . Allies Melted . | . . . Intel | -11 -10 -9 ------- Run | Yrd Mat Mat Active Infowar (turns) 779 | . 268 511 Sensors 779 | . 268 511 Robot Analysis Total . | . . . Derelict Logs Recovered . | . . . Drone Launches . | . . . Drone Recoveries . | . . . Exploration | -11 -10 -9 ------------- Run | Yrd Mat Mat Turns Passed 921 | 52 358 511 Spaces Moved 664 | 48 224 392 Core 16 | 16 . . Treads . | . . . Legs . | . . . Wheels 101 | 32 69 . Hover 547 | . 155 392 Flight . | . . . Fastest Speed 48 | 50 56 48 Average Speed 56 | 76 66 48 Slowest Speed 90 | 90 90 56 Overloaded Moves . | . . . Propulsion Burnouts . | . . . Robots Hopped . | . . . Potential Cave-ins . | . . . Cave-ins Triggered . | . . . Exploration Rate (%) 21 | 3 44 17 Regions Visited 2 Branch Regions . Pre-discovered Areas . | . . . Known Exits Taken . | . . . Unknown Exits Taken 2 | 1 1 . Scrap Searched . | . . . Spaces Dug . | . . . Terrain Destroyed . | . . . Melee . | . . . Projectile . | . . . AOE . | . . . Terrain Rammed . | . . . Walls Destroyed . | . . . Machines Disabled . | . . . Actions | -11 -10 -9 --------- Run | Yrd Mat Mat Total 1128 | 63 433 632 Wait 355 | 1 187 167 Move 662 | 47 223 392 Hop . | . . . Pick Up 21 | 10 7 4 Fast Attach 1 | . 1 . Attach 15 | 5 4 6 Detach 1 | . . 1 Swap 4 | . 1 3 Drop 8 | . 8 . Fire 59 | . 2 57 Melee . | . . . Ram 2 | . . 2 Kick . | . . . Crush . | . . . Escape Stasis . | . . . Rewire . | . . . Trap . | . . . Miscellaneous . | . . . Route ------- -11/Scrapyard -10/Materials (discovered 2 exits: *Mat / [*Sub]) -9/Materials History --------- Turn | Location | Event 14 | -11/Scrapyard | Discovered new exit (range 15) 53 | -11/Scrapyard | Entered Materials 316 | -10/Materials | Build established: Mutant 346 | -10/Materials | Discovered new exit (range 12) 402 | -10/Materials | Discovered new exit (range 16) 411 | -10/Materials | Entered another Materials area 411 | -9/Materials | Evolved 2 slots: Propulsion x2 922 | -9/Materials | Self-destructed Last Messages --------------- 00860_ R-06 Scavenger collects Corrupted Lgt. Treads. 00865_ W-16 Scout destroyed. 00868_ K-01 Serf collects debris. 00868_ Acquired 18 matter. 00869_ K-01 Serf destroyed. 00871_ K-01 Serf collects debris. 00874_ Acquired 12 matter. 00875_ Extracted 11 matter. 00890_ Hover Unit destroyed. 00891_ S-10 Pest destroyed. 00892_ Hover Unit destroyed. 00897_ S-10 Pest destroyed. 00898_ Acquired 8 matter. 00899_ S-10 Pest destroyed. 00900_ Acquired 4 matter. 00901_ U-05 Engineer builds a Door. 00903_ K-01 Serf cleans the Processing Tank. 00905_ Acquired Flight Unit. 00911_ K-01 Serf cleans the Processing Tank. 00912_ R-06 Scavenger collects Lgt. Assault Rifle. Map ----- +----------------------------------------------------+ | | | | | | | | | | | | | | | | | ?????????????????????????????????????????????????? | | ?????????????????????????????????????????????????? | | ?????????????????????????????????????????????????? | | ?????????????????????????????????????????????????? | | ?????????????????????????????????????????????????? | | ?????????????????????????????????????????????????? | | ?????????????????????????????????????????????????? | | ?????????????????????????????????????????????????? | | ?????????????????????????????????????????????????? | | ?????????????????????????????????????????????????? | | ?????????????????????????????????????????????????? | | ?????????????????????????????????????????#####???? | | ?????????????????????????????????????????# ##### | | ???????????????????????????????########### # | | ???????????????????????????????# # # "" | | ???????????????????????????????# """ # # "" | | ??????????????###/############## """ #% # "" | | ?????????# t @ + """ %/[ # "" | | ?????????# s ##############?""" "#= # "" | | ???????????????????????????????# """ T# # "" | | ???????????????????????????????# "# # "" | | ???????????????????????????????# # # | | ???????????????????????????????########### ###+# | | ?????????????????????????????????????????# % | | ?????????????????????????????????????????# | | ?????????????????????????????????????????# | | ?????????????????????????????????????????######### | | ?????????????????????????????????????????????????? | | ?????????????????????????????????????????????????? | | ?????????????????????????????????????????????????? | | ?????????????????????????????????????????????????? | | ?????????????????????????????????????????????????? | | ?????????????????????????????????????????????????? | | ?????????????????????????????????????????????????? | | ?????????????????????????????????????????????????? | | ?????????????????????????????????????????????????? | | ?????????????????????????????????????????????????? | | ?????????????????????????????????????????????????? | | ?????????????????????????????????????????????????? | | ?????????????????????????????????????????????????? | | ?????????????????????????????????????????????????? | | ?????????????????????????????????????????????????? | +----------------------------------------------------+ Best States ------------- Heat Dissipation 28 Energy Generation 10 Energy Capacity 250 Matter Stores 300 Matter Capacity 300 Sight Range 16 Robot Scan Range 14 Terrain Scan Density 10 Resistance: KI 20 Resistance: TH 20 Resistance: EX 20 Resistance: EM 20 Resistance: I 20 Resistance: S 20 Resistance: P 20 Evasion (%) 55 Offensive Hacking 10 Item Schematics ----------------- None Robot Schematics ------------------ None Fabricated ------------ Nothing Repaired ---------- Nothing Alien Tech Used ----------------- None Achievements -------------- None Challenges ------------ None Game ------ Seed SegregatorCannonRipper Manual? 0 Play Time 00:15:47 Cumulative 19.6 hours Start 2025.07.11 @ 21:39:15 End 2025.07.29 @ 21:42:22 Sessions 3 Manual Loads 0 Difficulty Adventurer Special Mode None Game No. 15 Rogue 0 Adventurer 15 Explorer 0 Win Type - Total 0 Types 0/0/0/0/0/0/0/0/0/0 Lore% 25 Gallery% 21 Achievement% 28 Wizard Run 0 Options --------- Layout 0 ASCII 0 Keyboard 0 Movement Mouse Keybinds 0 Fullscreen 2 Font 24/Smallcaps Map View 38x25 Zoom Use 92% Tactical HUD 1 Map Filters NONE Filters NONE Steam 1 RUN: 777be258-8a0b-45d3-acd8-939a6b3b042d